fUST/lending_fUST_20260219
["ID","MTS","AMOUNT","RATE_DAILY","PERIOD"]
[405997645,1771516248228,-151.0,0.00013698,2]
[405997646,1771516248237,-151.0,0.00013698,2]
[405997647,1771516248248,-304.460143,0.00013699,2]
[405997648,1771516248259,-644.66,0.00013699,2]
[405997649,1771516248390,-468.75936704,0.00041268,118]
[405997650,1771516248417,-207.03617841,0.00041268,118]
[405997651,1771516248443,-518.4277,0.00041268,120]
[405997652,1771516248466,-531.6978,0.00041268,120]
[405997653,1771516248489,-1763.0,0.00041268,30]
[405997654,1771516248512,-550.0,0.00041268,30]
[405997655,1771516248536,-500.0,0.00041268,120]
[405997656,1771516248560,-916.70094839,0.00041268,30]
[405997657,1771516248584,-1840.07809533,0.00041268,30]
[405997658,1771516248608,-1641.98921194,0.00041268,120]
[405997659,1771516248631,-394.80706256,0.00041268,120]
[405997660,1771516248654,-199.28433002,0.00041268,120]
[405997661,1771516248677,-264.02287371,0.00041268,30]
[405997662,1771516248700,-974.34235006,0.00041268,30]
[405997663,1771516248725,-3903.16330259,0.00041268,30]
[405997664,1771516248747,-1986.18181272,0.00041268,35]
[405997665,1771516248770,-454.30964986,0.00041268,120]
[405997666,1771516248792,-698.89209853,0.00041268,120]
[405997667,1771516248814,-571.27079894,0.00041268,30]
[405997668,1771516248837,-715.21257824,0.00041268,120]
[405997669,1771516248859,-538.46199264,0.00041268,120]
[405997670,1771516248882,-161.41398552,0.00041268,30]
[405997671,1771516249007,-1347.13862586,0.00041268,120]
[405997672,1771516249035,-1167.27555768,0.00041268,120]
[405997673,1771516249060,-923.38207168,0.00041268,30]
[405997674,1771516249085,-152.78562955,0.00041268,120]
[405997675,1771516249110,-1431.63000654,0.00041268,30]
[405997676,1771516249133,-270.83352275,0.00041268,120]
[405997677,1771516249156,-177.43950279,0.00041268,120]
[405997678,1771516249180,-961.8303445,0.00041268,30]
[405997679,1771516249202,-2376.31004005,0.00041268,120]
[405997680,1771516249222,-1371.30012563,0.00041268,120]
[405997681,1771516249246,-279.84354704,0.00041268,31]
[405997682,1771516249269,-588.85271021,0.00041268,30]
[405997683,1771516249292,-986.84921582,0.00041268,30]
[405997684,1771516249318,-2015.74311141,0.00041268,120]
[405997685,1771516249342,-158.87924453,0.00041268,30]
[405997687,1771516249366,-2295.5795,0.00041268,60]
[405997691,1771516249391,-733.68422984,0.00041268,120]
[405997694,1771516249416,-524.77856729,0.00041268,120]
[405997698,1771516249440,-426104.0,0.00041268,120]
[405997701,1771516249465,-100000.0,0.00041268,30]
[405997705,1771516249490,-3436332.81231033,0.00041268,30]
[405997707,1771516253252,-1762277.05682358,0.00041268,30]
[405997708,1771516253277,-1900.0,0.00041268,120]
[405997709,1771516253301,-2235822.94317642,0.00041268,30]
[405997710,1771516256727,-1764177.05682358,0.00041268,30]
[405997711,1771516256752,-481.0084227,0.00041268,60]
[405997712,1771516256777,-1727.37219552,0.00041268,30]
[405997713,1771516256803,-3331.0,0.00041268,120]
[405997714,1771516256828,-518.5472852,0.00041268,120]
[405997715,1771516256852,-270.0,0.00041268,120]
[405997716,1771516256876,-286.0,0.00041268,120]
[405997717,1771516256901,-10120.80780818,0.00041268,120]
[405997718,1771516256925,-603.04709456,0.00041268,120]
[405997719,1771516256951,-693.45960356,0.00041268,120]
[405997720,1771516256978,-155.46566544,0.00041268,120]
[405997721,1771516257003,-158.31244849,0.00041268,30]
[405997722,1771516257028,-373.59474831,0.00041268,120]
[405997723,1771516257055,-332.88566128,0.00041268,120]
[405997724,1771516257079,-336.5154548,0.00041268,120]
[405997725,1771516257102,-441.87584788,0.00041268,120]
[405997726,1771516257126,-216.62336955,0.00041268,31]
[405997727,1771516257265,-2215776.42757095,0.00041268,30]
[405997728,1771516260161,-2837490.15002243,0.00041268,30]
[405997729,1771516260186,-4896.2726168,0.00041268,30]
[405997730,1771516260212,-183.0,0.00041268,120]
[405997731,1771516260241,-13412.41,0.00041268,120]
[405997732,1771516260268,-631.84168096,0.00041268,120]
[405997733,1771516260294,-631.84168096,0.00041268,120]
[405997734,1771516260319,-631.84168096,0.00041268,120]
[405997735,1771516260345,-631.84168096,0.00041268,120]
[405997736,1771516260370,-631.84168096,0.00041268,120]
[405997737,1771516260397,-631.84168096,0.00041268,120]
[405997738,1771516260423,-631.84168096,0.00041268,120]
[405997739,1771516260447,-631.84168096,0.00041268,120]
[405997740,1771516260474,-631.84168096,0.00041268,120]
[405997741,1771516260497,-631.84168096,0.00041268,120]
[405997742,1771516260521,-631.84168096,0.00041268,120]
[405997743,1771516260545,-631.84168096,0.00041268,120]
[405997744,1771516260570,-631.84168096,0.00041268,120]
[405997745,1771516260594,-631.84168096,0.00041268,120]
[405997746,1771516260618,-631.84168096,0.00041268,120]
[405997747,1771516260642,-631.84168096,0.00041268,120]
[405997748,1771516260666,-631.84168096,0.00041268,120]
[405997749,1771516260690,-631.84168096,0.00041268,120]
[405997750,1771516260713,-631.84168096,0.00041268,120]
[405997751,1771516260739,-631.84168096,0.00041268,120]
[405997752,1771516260764,-631.84168096,0.00041268,120]
[405997753,1771516260787,-631.84168096,0.00041268,120]
[405997754,1771516260810,-631.84168096,0.00041268,120]
[405997755,1771516260839,-631.84168096,0.00041268,120]
[405997756,1771516260863,-631.84168096,0.00041268,120]
[405997757,1771516260886,-631.84168096,0.00041268,120]
[405997758,1771516260910,-631.84168096,0.00041268,120]
[405997759,1771516260933,-631.84168096,0.00041268,120]
[405997760,1771516260956,-631.84168096,0.00041268,120]
[405997761,1771516260979,-631.84168096,0.00041268,120]
[405997762,1771516261004,-172.59571012,0.00041268,120]
[405997763,1771516261027,-81427.99,0.00041268,32]
[405997764,1771516261052,-156.4230736,0.00041268,120]
[405997765,1771516261078,-209.24296744,0.00041268,120]
[405997766,1771516261101,-397004.10255474,0.00041268,120]
[405997767,1771516261129,-214.91929211,0.00041268,120]
[405997768,1771516261154,-165.34326503,0.00041268,120]
[405997769,1771516261178,-251.86069184,0.00041268,120]
[405997770,1771516261203,-165.34326503,0.00041268,120]
[405997771,1771516261231,-165.34326503,0.00041268,120]
[405997772,1771516261258,-165.34326503,0.00041268,120]
[405997773,1771516261283,-165.34326503,0.00041268,120]
[405997774,1771516261307,-165.34326503,0.00041268,120]
[405997775,1771516261332,-165.34326503,0.00041268,120]
[405997776,1771516261358,-165.34326503,0.00041268,120]
[405997777,1771516261382,-185995.87717613,0.00041268,60]
[405997778,1771516261407,-8583.94185736,0.00041268,60]
[405997779,1771516261430,-12245.32958148,0.00041268,60]
[405997780,1771516261455,-28940.87034893,0.00041268,120]
[405997781,1771516261479,-1836.6,0.00041268,120]
[405997782,1771516261502,-3000.0,0.00041268,120]
[405997783,1771516261526,-160.07683322,0.00041268,120]
[405997784,1771516261551,-2000.0,0.00041268,30]
[405997785,1771516261575,-58825.86,0.00041268,120]
[405997786,1771516261601,-342714.48072476,0.00041268,30]
[405997787,1771516267129,-4000000.0,0.00041268,30]
[405997788,1771516271251,-1803395.70838658,0.00041268,30]
[405997789,1771516271274,-4640.46316636,0.00041268,30]
[405997790,1771516271298,-163.35007628,0.00041268,120]
[405997791,1771516271325,-163.35007627,0.00041268,120]
[405997792,1771516271348,-150.19254399,0.00041268,120]
[405997793,1771516271372,-150.19254399,0.00041268,120]
[405997794,1771516271395,-272.34648052,0.00041268,120]
[405997795,1771516271419,-204.82449094,0.00041268,120]
[405997796,1771516271444,-243.81657821,0.00041268,120]
[405997797,1771516271469,-235.77460328,0.00041268,120]
[405997798,1771516271494,-243.81657821,0.00041268,120]
[405997799,1771516271517,-243.81657821,0.00041268,120]
[405997800,1771516271539,-568.19183306,0.00041268,120]
[405997801,1771516271564,-191.31584787,0.00041268,120]
[405997802,1771516271587,-188.5389573,0.00041268,120]
[405997803,1771516271610,-100000.0,0.00041268,120]
[405997804,1771516271634,-54038.16205899,0.00041268,120]
[405997805,1771516271657,-174.73662763,0.00041268,120]
[405997806,1771516271681,-162.157595,0.00041268,120]
[405997807,1771516271705,-150.192544,0.00041268,120]
[405997808,1771516271732,-1366.12869539,0.00041268,120]
[405997809,1771516271757,-1366.12869539,0.00041268,120]
[405997810,1771516271780,-180.66829304,0.00041268,120]
[405997811,1771516271806,-1366.12869539,0.00041268,120]
[405997812,1771516271833,-1366.12869539,0.00041268,120]
[405997813,1771516271858,-1366.12869539,0.00041268,120]
[405997814,1771516271884,-1366.12869539,0.00041268,120]
[405997815,1771516271910,-1366.12869539,0.00041268,120]
[405997816,1771516271936,-1366.12869539,0.00041268,120]
[405997817,1771516271962,-1366.12869539,0.00041268,120]
[405997818,1771516271990,-1366.12869539,0.00041268,120]
[405997819,1771516272014,-1366.12869539,0.00041268,120]
[405997820,1771516272043,-1366.12869539,0.00041268,120]
[405997821,1771516272069,-1366.12869539,0.00041268,120]
[405997822,1771516272094,-1366.12869539,0.00041268,120]
[405997823,1771516272120,-1366.12869539,0.00041268,120]
[405997824,1771516272145,-1366.12869539,0.00041268,120]
[405997825,1771516272169,-1366.12869539,0.00041268,120]
[405997826,1771516272195,-1366.12869539,0.00041268,120]
[405997827,1771516272219,-1366.12869539,0.00041268,120]
[405997828,1771516272247,-1366.12869539,0.00041268,120]
[405997829,1771516272272,-1366.12869539,0.00041268,120]
[405997830,1771516272298,-1366.12869539,0.00041268,120]
[405997831,1771516272323,-1366.12869539,0.00041268,120]
[405997832,1771516272349,-1366.12869539,0.00041268,120]
[405997833,1771516272375,-1366.12869539,0.00041268,120]
[405997834,1771516272401,-1366.12869539,0.00041268,120]
[405997835,1771516272427,-1366.12869539,0.00041268,120]
[405997836,1771516272453,-1366.12869539,0.00041268,120]
[405997837,1771516272480,-1366.12869539,0.00041268,120]
[405997838,1771516272508,-1366.12869539,0.00041268,120]
[405997839,1771516272534,-1366.12869539,0.00041268,120]
[405997840,1771516272562,-1366.12869539,0.00041268,120]
[405997841,1771516272588,-1366.12869539,0.00041268,120]
[405997842,1771516272615,-1366.12869539,0.00041268,120]
[405997843,1771516272641,-1366.12869539,0.00041268,120]
[405997844,1771516272667,-1366.12869539,0.00041268,120]
[405997845,1771516272692,-1366.12869539,0.00041268,120]
[405997846,1771516272719,-1366.12869539,0.00041268,120]
[405997847,1771516272745,-1366.12869539,0.00041268,120]
[405997848,1771516272771,-1366.12869539,0.00041268,120]
[405997849,1771516272796,-1366.12869539,0.00041268,120]
[405997850,1771516272821,-1366.12869539,0.00041268,120]
[405997851,1771516272952,-1366.12869539,0.00041268,120]
[405997852,1771516272979,-1366.12869539,0.00041268,120]
[405997853,1771516273006,-1366.12869539,0.00041268,120]
[405997854,1771516273031,-1366.12869539,0.00041268,120]
[405997855,1771516273056,-1366.12869539,0.00041268,120]
[405997856,1771516273083,-1366.12869539,0.00041268,120]
[405997857,1771516273110,-1366.12869539,0.00041268,120]
[405997858,1771516273135,-1366.12869539,0.00041268,120]
[405997859,1771516273158,-174.73662762,0.00041268,120]
[405997860,1771516273182,-180.66829303,0.00041268,120]
[405997861,1771516273207,-163.35007628,0.00041268,120]
[405997862,1771516273233,-163.35007628,0.00041268,120]
[405997863,1771516273258,-307.0957812,0.00041268,30]
[405997864,1771516273281,-307.1546708,0.00041268,30]
[405997865,1771516273304,-500.0,0.00041268,30]
[405997866,1771516273327,-500.0,0.00041268,30]
[405997867,1771516273351,-302.65705404,0.00041268,30]
[405997868,1771516273374,-604.9613193,0.00041268,30]
[405997869,1771516273399,-606.3213152,0.00041268,30]
[405997870,1771516273423,-307.1546708,0.00041268,30]
[405997871,1771516273447,-606.1120634,0.00041268,30]
[405997872,1771516273472,-307.0957812,0.00041268,30]
[405997873,1771516273498,-307.0957812,0.00041268,30]
[405997874,1771516273522,-307.0957812,0.00041268,30]
[405997875,1771516273546,-307.0957812,0.00041268,30]
[405997876,1771516273570,-186.1059888,0.00041268,30]
[405997877,1771516273595,-307.0957812,0.00041268,30]
[405997878,1771516273619,-449.3669609,0.00041268,30]
[405997879,1771516273642,-606.2664177,0.00041268,30]
[405997880,1771516273666,-606.2664177,0.00041268,30]
[405997881,1771516273690,-306.8497565,0.00041268,30]
[405997882,1771516273714,-606.2664177,0.00041268,30]
[405997883,1771516273740,-605.4968345,0.00041268,30]
[405997884,1771516273765,-307.0957812,0.00041268,30]
[405997885,1771516273790,-307.0957812,0.00041268,30]
[405997886,1771516273814,-605.5702201,0.00041268,30]
[405997887,1771516273839,-307.0957812,0.00041268,30]
[405997888,1771516273863,-186.1059888,0.00041268,30]
[405997889,1771516273889,-307.0957812,0.00041268,30]
[405997890,1771516273913,-605.957709,0.00041268,30]
[405997891,1771516273937,-186.1059888,0.00041268,30]
[405997892,1771516273960,-307.0957812,0.00041268,30]
[405997893,1771516273984,-186.1059888,0.00041268,30]
[405997894,1771516274007,-606.2664177,0.00041268,30]
[405997895,1771516274034,-307.0957812,0.00041268,30]
[405997896,1771516274057,-606.2664177,0.00041268,30]
[405997897,1771516274083,-606.1669609,0.00041268,30]
[405997898,1771516274109,-186.1059888,0.00041268,30]
[405997899,1771516274135,-307.1546708,0.00041268,30]
[405997900,1771516274159,-323.5439759,0.00041268,30]
[405997901,1771516274183,-198.0261106,0.00041268,30]
[405997902,1771516274207,-186.1059888,0.00041268,30]
[405997903,1771516274232,-606.2664177,0.00041268,30]
[405997904,1771516274257,-307.0957812,0.00041268,30]
[405997905,1771516274281,-208.7521217,0.00041268,30]
[405997906,1771516274305,-606.1669609,0.00041268,30]
[405997907,1771516274329,-188.2992436,0.00041268,30]
[405997908,1771516274353,-323.5439759,0.00041268,30]
[405997909,1771516274377,-307.0957812,0.00041268,30]
[405997910,1771516274401,-606.2664177,0.00041268,30]
[405997911,1771516274426,-186.1059888,0.00041268,30]
[405997912,1771516274450,-307.0957812,0.00041268,30]
[405997913,1771516274477,-150.0,0.00041268,30]
[405997914,1771516274502,-195.5509533,0.00041268,30]
[405997915,1771516274527,-323.5439759,0.00041268,30]
[405997916,1771516274550,-606.2664177,0.00041268,30]
[405997917,1771516274574,-307.0957812,0.00041268,30]
[405997918,1771516274599,-186.1059888,0.00041268,30]
[405997919,1771516274622,-150.0,0.00041268,30]
[405997920,1771516274646,-195.5852973,0.00041268,30]
[405997921,1771516274671,-606.2664177,0.00041268,30]
[405997922,1771516274695,-306.9675357,0.00041268,30]
[405997923,1771516274720,-323.5439759,0.00041268,30]
[405997924,1771516274747,-186.1059888,0.00041268,30]
[405997925,1771516274772,-150.0,0.00041268,30]
[405997926,1771516274797,-307.1546708,0.00041268,30]
[405997927,1771516274821,-606.2664177,0.00041268,30]
[405997928,1771516274846,-186.1253935,0.00041268,30]
[405997929,1771516274869,-305.7053244,0.00041268,30]
[405997930,1771516274894,-307.0957812,0.00041268,30]
[405997931,1771516274919,-186.1059888,0.00041268,30]
[405997932,1771516274942,-606.2664177,0.00041268,30]
[405997933,1771516274966,-195.0431427,0.00041268,30]
[405997934,1771516274993,-150.0,0.00041268,30]
[405997935,1771516275018,-473.9370625,0.00041268,30]
[405997936,1771516275047,-186.1059888,0.00041268,30]
[405997937,1771516275073,-307.0957812,0.00041268,30]
[405997938,1771516275098,-323.5439759,0.00041268,30]
[405997939,1771516275123,-195.5509533,0.00041268,30]
[405997940,1771516275146,-307.0957812,0.00041268,30]
[405997941,1771516275171,-606.2664177,0.00041268,30]
[405997942,1771516275194,-150.0,0.00041268,30]
[405997943,1771516275218,-186.1059888,0.00041268,30]
[405997944,1771516275242,-323.5439759,0.00041268,30]
[405997945,1771516275265,-195.5509533,0.00041268,30]
[405997946,1771516275289,-150.0,0.00041268,30]
[405997947,1771516275312,-307.0368916,0.00041268,30]
[405997948,1771516275338,-185.9278231,0.00041268,30]
[405997949,1771516275474,-606.2664177,0.00041268,30]
[405997950,1771516275499,-150.0,0.00041268,30]
[405997951,1771516275523,-606.3213152,0.00041268,30]
[405997952,1771516275547,-186.1059888,0.00041268,30]
[405997953,1771516275571,-307.0957814,0.00041268,30]
[405997954,1771516275595,-150.0,0.00041268,30]
[405997955,1771516275619,-195.5509533,0.00041268,30]
[405997956,1771516275644,-306.9675357,0.00041268,30]
[405997957,1771516275667,-259.6620402,0.00041268,30]
[405997958,1771516275690,-606.2664177,0.00041268,30]
[405997959,1771516275713,-328.2951467,0.00041268,30]
[405997960,1771516275738,-150.0,0.00041268,30]
[405997961,1771516275760,-195.5509533,0.00041268,30]
[405997962,1771516275784,-606.2664177,0.00041268,30]
[405997963,1771516275808,-323.5439759,0.00041268,30]
[405997964,1771516275833,-307.0957812,0.00041268,30]
[405997965,1771516275856,-186.1059888,0.00041268,30]
[405997966,1771516275880,-186.1059888,0.00041268,30]
[405997967,1771516275904,-307.0957812,0.00041268,30]
[405997968,1771516275928,-326.8900848,0.00041268,30]
[405997969,1771516275950,-606.2664177,0.00041268,30]
[405997970,1771516275972,-544.69709334,0.00041268,120]
[405997971,1771516275996,-544.69709334,0.00041268,120]
[405997972,1771516276020,-544.69709334,0.00041268,120]
[405997973,1771516276046,-544.69709334,0.00041268,120]
[405997974,1771516276070,-544.69709334,0.00041268,120]
[405997975,1771516276094,-544.69709334,0.00041268,120]
[405997976,1771516276119,-544.69709334,0.00041268,120]
[405997977,1771516276143,-544.69709334,0.00041268,120]
[405997978,1771516276165,-544.69709334,0.00041268,120]
[405997979,1771516276188,-544.69709334,0.00041268,120]
[405997980,1771516276212,-544.69709334,0.00041268,120]
[405997981,1771516276237,-544.69709334,0.00041268,120]
[405997982,1771516276260,-544.69709334,0.00041268,120]
[405997983,1771516276283,-544.69709334,0.00041268,120]
[405997984,1771516276306,-544.69709334,0.00041268,120]
[405997985,1771516276330,-544.69709334,0.00041268,120]
[405997986,1771516276353,-544.69709334,0.00041268,120]
[405997987,1771516276377,-544.69709334,0.00041268,120]
[405997988,1771516276404,-544.69709334,0.00041268,120]
[405997989,1771516276428,-544.69709334,0.00041268,120]
[405997990,1771516276453,-544.69709334,0.00041268,120]
[405997991,1771516276477,-544.69709334,0.00041268,120]
[405997992,1771516276502,-402.5179007,0.00041268,30]
[405997993,1771516276527,-186.0614474,0.00041268,30]
[405997994,1771516276551,-544.69709334,0.00041268,120]
[405997995,1771516276575,-307.0957812,0.00041268,30]
[405997996,1771516276598,-544.69709334,0.00041268,120]
[405997997,1771516276626,-544.69709334,0.00041268,120]
[405997998,1771516276659,-544.69709334,0.00041268,120]
[405997999,1771516276689,-544.69709334,0.00041268,120]
[405998000,1771516276718,-544.69709334,0.00041268,120]
[405998001,1771516276748,-544.69709334,0.00041268,120]
[405998002,1771516276779,-544.69709334,0.00041268,120]
[405998003,1771516276808,-150.0,0.00041268,30]
[405998004,1771516276840,-186.4301455,0.00041268,30]
[405998005,1771516276868,-312.2780606,0.00041268,30]
[405998006,1771516276897,-150.0,0.00041268,30]
[405998007,1771516276928,-323.5979665,0.00041268,30]
[405998008,1771516276956,-297.7762374,0.00041268,30]
[405998009,1771516276984,-606.166961,0.00041268,30]
[405998010,1771516277014,-306.8392902,0.00041268,30]
[405998011,1771516277048,-326.0972952,0.00041268,30]
[405998012,1771516277079,-186.1059888,0.00041268,30]
[405998013,1771516277111,-606.2664177,0.00041268,30]
[405998014,1771516277143,-323.5439759,0.00041268,30]
[405998015,1771516277169,-186.1059888,0.00041268,30]
[405998016,1771516277195,-307.0957812,0.00041268,30]
[405998017,1771516277227,-606.2664177,0.00041268,30]
[405998018,1771516277257,-307.1546708,0.00041268,30]
[405998019,1771516277283,-186.1059888,0.00041268,30]
[405998020,1771516277314,-150.0,0.00041268,30]
[405998021,1771516277344,-195.5509533,0.00041268,30]
[405998022,1771516277373,-323.5439759,0.00041268,30]
[405998023,1771516277401,-606.2664177,0.00041268,30]
[405998024,1771516277428,-307.0957812,0.00041268,30]
[405998025,1771516277457,-186.0865841,0.00041268,30]
[405998026,1771516277487,-150.0,0.00041268,30]
[405998027,1771516277516,-198.1080524,0.00041268,30]
[405998028,1771516277543,-186.0614474,0.00041268,30]
[405998029,1771516277572,-306.7673141,0.00041268,30]
[405998030,1771516277600,-606.2664177,0.00041268,30]
[405998031,1771516277629,-323.5439759,0.00041268,30]
[405998032,1771516277657,-150.0,0.00041268,30]
[405998033,1771516277687,-307.0957812,0.00041268,30]
[405998034,1771516277716,-606.2664177,0.00041268,30]
[405998035,1771516277747,-186.1059888,0.00041268,30]
[405998036,1771516277776,-150.0,0.00041268,30]
[405998037,1771516277805,-307.0957812,0.00041268,30]
[405998038,1771516277833,-606.1669609,0.00041268,30]
[405998039,1771516277861,-186.1059888,0.00041268,30]
[405998040,1771516277888,-150.0,0.00041268,30]
[405998041,1771516277914,-500.0,0.00041268,120]
[405998042,1771516277941,-500.0,0.00041268,120]
[405998043,1771516277968,-500.0,0.00041268,120]
[405998044,1771516278123,-606.2115202,0.00041268,30]
[405998045,1771516278148,-307.0957812,0.00041268,30]
[405998046,1771516278171,-186.1059888,0.00041268,30]
[405998047,1771516278194,-323.5439759,0.00041268,30]
[405998048,1771516278217,-500.0,0.00041268,120]
[405998049,1771516278242,-500.0,0.00041268,120]
[405998050,1771516278266,-500.0,0.00041268,120]
[405998051,1771516278289,-500.0,0.00041268,120]
[405998052,1771516278313,-500.0,0.00041268,120]
[405998053,1771516278339,-500.0,0.00041268,120]
[405998054,1771516278363,-500.0,0.00041268,120]
[405998055,1771516278387,-500.0,0.00041268,120]
[405998056,1771516278411,-150.0,0.00041268,30]
[405998057,1771516278439,-500.0,0.00041268,120]
[405998058,1771516278465,-500.0,0.00041268,120]
[405998059,1771516278490,-500.0,0.00041268,120]
[405998060,1771516278515,-323.5439761,0.00041268,30]
[405998061,1771516278541,-606.1669609,0.00041268,30]
[405998062,1771516278567,-311.4782053,0.00041268,30]
[405998063,1771516278592,-186.1059888,0.00041268,30]
[405998064,1771516278617,-500.0,0.00041268,120]
[405998065,1771516278641,-500.0,0.00041268,120]
[405998066,1771516278666,-500.0,0.00041268,120]
[405998067,1771516278690,-500.0,0.00041268,120]
[405998068,1771516278714,-500.0,0.00041268,120]
[405998069,1771516278739,-642.3,0.00041268,120]
[405998070,1771516278764,-150.0,0.00041268,30]
[405998071,1771516278791,-307.1546708,0.00041268,30]
[405998072,1771516278815,-606.2664177,0.00041268,30]
[405998073,1771516278838,-186.1059888,0.00041268,30]
[405998074,1771516278863,-323.5439759,0.00041268,30]
[405998075,1771516278886,-150.0,0.00041268,30]
[405998076,1771516278911,-323.5439759,0.00041268,30]
[405998077,1771516278935,-606.2664177,0.00041268,30]
[405998078,1771516278959,-186.1059888,0.00041268,30]
[405998079,1771516278984,-307.0957812,0.00041268,30]
[405998080,1771516279008,-150.0,0.00041268,30]
[405998081,1771516279036,-195.5509533,0.00041268,30]
[405998082,1771516279059,-150.8422236,0.00041268,30]
[405998083,1771516279085,-186.1253935,0.00041268,30]
[405998084,1771516279110,-606.2664177,0.00041268,30]
[405998085,1771516279136,-323.5439759,0.00041268,30]
[405998086,1771516279160,-307.0957812,0.00041268,30]
[405998087,1771516279185,-151.0,0.00041268,120]
[405998088,1771516279209,-151.0,0.00041268,120]
[405998089,1771516279233,-151.0389491,0.00041268,30]
[405998090,1771516279259,-151.0,0.00041268,120]
[405998091,1771516279283,-195.4493912,0.00041268,30]
[405998092,1771516279307,-151.0,0.00041268,120]
[405998093,1771516279332,-226.782825,0.00041268,120]
[405998094,1771516279355,-186.1059888,0.00041268,30]
[405998095,1771516279380,-323.5439759,0.00041268,30]
[405998096,1771516279405,-307.0957812,0.00041268,30]
[405998097,1771516279430,-606.1669609,0.00041268,30]
[405998098,1771516279454,-195.5509533,0.00041268,30]
[405998099,1771516279479,-150.8114129,0.00041268,30]
[405998100,1771516279504,-606.2664177,0.00041268,30]
[405998101,1771516279528,-326.5431972,0.00041268,30]
[405998102,1771516279552,-186.1059888,0.00041268,30]
[405998103,1771516279578,-306.9086461,0.00041268,30]
[405998104,1771516279603,-606.2664177,0.00041268,30]
[405998105,1771516279627,-186.1059888,0.00041268,30]
[405998106,1771516279651,-307.0957812,0.00041268,30]
[405998107,1771516279675,-150.0,0.00041268,30]
[405998108,1771516279699,-195.5509533,0.00041268,30]
[405998109,1771516279723,-307.0957814,0.00041268,30]
[405998110,1771516279748,-323.5979665,0.00041268,30]
[405998111,1771516279772,-606.2664177,0.00041268,30]
[405998112,1771516279796,-150.0,0.00041268,30]
[405998113,1771516279820,-186.1059888,0.00041268,30]
[405998114,1771516279846,-150.0,0.00041268,30]
[405998115,1771516279870,-307.0957812,0.00041268,30]
[405998116,1771516279895,-323.5979665,0.00041268,30]
[405998117,1771516279919,-186.1059888,0.00041268,30]
[405998118,1771516279944,-611.0973992,0.00041268,30]
[405998119,1771516279969,-164.561785,0.00041268,120]
[405998120,1771516279996,-150.0,0.00041268,30]
[405998121,1771516280021,-307.0957812,0.00041268,30]
[405998122,1771516280049,-323.4359946,0.00041268,30]
[405998123,1771516280073,-606.2664178,0.00041268,30]
[405998124,1771516280099,-185.8944209,0.00041268,30]
[405998125,1771516280124,-151.046733,0.00041268,30]
[405998126,1771516280149,-307.0957812,0.00041268,30]
[405998127,1771516280175,-186.1253935,0.00041268,30]
[405998128,1771516280201,-606.2664177,0.00041268,30]
[405998129,1771516280227,-323.543976,0.00041268,30]
[405998130,1771516280255,-150.0,0.00041268,30]
[405998131,1771516280283,-195.0091524,0.00041268,30]
[405998132,1771516280310,-150.0,0.00041268,30]
[405998133,1771516280335,-323.5439759,0.00041268,30]
[405998134,1771516280360,-606.1669609,0.00041268,30]
[405998135,1771516280386,-186.0477746,0.00041268,30]
[405998136,1771516280410,-306.5827992,0.00041268,30]
[405998137,1771516280435,-195.5509533,0.00041268,30]
[405998138,1771516280459,-150.0,0.00041268,30]
[405998139,1771516280582,-150.0,0.00041268,30]
[405998140,1771516280608,-606.2664177,0.00041268,30]
[405998141,1771516280633,-323.5439759,0.00041268,30]
[405998142,1771516280657,-307.0957812,0.00041268,30]
[405998143,1771516280687,-186.1059888,0.00041268,30]
[405998144,1771516280710,-150.0,0.00041268,30]
[405998145,1771516280738,-198.573219,0.00041268,30]
[405998146,1771516280767,-186.1059889,0.00041268,30]
[405998147,1771516280793,-306.9675357,0.00041268,30]
[405998148,1771516280820,-323.5439759,0.00041268,30]
[405998149,1771516280846,-418.8207908,0.00041268,30]
[405998150,1771516280871,-185.2377876,0.00041268,30]
[405998151,1771516280897,-531.8831468,0.00041268,30]
[405998152,1771516280922,-307.1546708,0.00041268,30]
[405998153,1771516280948,-186.1059888,0.00041268,30]
[405998154,1771516280974,-323.5439759,0.00041268,30]
[405998155,1771516281003,-195.5509533,0.00041268,30]
[405998156,1771516281030,-150.0,0.00041268,30]
[405998157,1771516281054,-150.0,0.00041268,30]
[405998158,1771516281079,-186.1059888,0.00041268,30]
[405998159,1771516281108,-307.0957812,0.00041268,30]